[Event "Early-Titled-Tuesday-Blitz-March-05-2024"]
[Site "Chess.com"]
[Date "2024.03.05"]
[Round "4"]
[White "Njal28"]
[Black "PavelShkapenko"]
[Result "1/2-1/2"]
[WhiteElo "3025"]
[BlackElo "2751"]
[TimeControl "180+1"]
[EndTime "8:42:18 PST"]
[Termination "Game drawn by repetition"]

1. d4 {[%clk 0:03:00.9]} 1... Nf6 {[%clk 0:02:58.3]} 2. c4 {[%clk 0:03:00.2]}
2... e6 {[%clk 0:02:58.9]} 3. Nc3 {[%clk 0:02:59.5]} 3... Bb4 {[%clk 0:02:59.4]}
4. e3 {[%clk 0:02:59.5]} 4... c5 {[%clk 0:02:59.6]} 5. a3 {[%clk 0:02:59.1]}
5... Bxc3+ {[%clk 0:02:58.9]} 6. bxc3 {[%clk 0:03:00]} 6... O-O {[%clk
0:02:36.5]} 7. Ne2 {[%clk 0:02:59.9]} 7... Nc6 {[%clk 0:02:30.2]} 8. Ng3 {[%clk
0:02:58.1]} 8... b6 {[%clk 0:02:11.1]} 9. e4 {[%clk 0:02:55.2]} 9... Ne8 {[%clk
0:01:56.1]} 10. d5 {[%clk 0:02:53.7]} 10... Na5 {[%clk 0:01:54.8]} 11. Bd3
{[%clk 0:02:54.3]} 11... Ba6 {[%clk 0:01:39.7]} 12. Qe2 {[%clk 0:02:53.3]} 12...
f6 {[%clk 0:01:35.4]} 13. O-O {[%clk 0:02:37.6]} 13... Nd6 {[%clk 0:01:31.6]}
14. Nh5 {[%clk 0:02:35.5]} 14... Bxc4 {[%clk 0:01:06.9]} 15. Rd1 {[%clk
0:02:35.6]} 15... e5 {[%clk 0:00:51.8]} 16. Bxc4 {[%clk 0:02:35.8]} 16... Naxc4
{[%clk 0:00:51.4]} 17. Rd3 {[%clk 0:02:36.7]} 17... Rf7 {[%clk 0:00:36.7]} 18.
Rg3 {[%clk 0:02:32.6]} 18... Kh8 {[%clk 0:00:36.6]} 19. Rh3 {[%clk 0:02:32.3]}
19... Kg8 {[%clk 0:00:36.5]} 20. f4 {[%clk 0:02:27.3]} 20... g6 {[%clk
0:00:34.5]} 21. Ng3 {[%clk 0:02:24.1]} 21... exf4 {[%clk 0:00:33.9]} 22. Bxf4
{[%clk 0:02:25]} 22... Ne5 {[%clk 0:00:34.4]} 23. Rf1 {[%clk 0:02:23.8]} 23...
Qe7 {[%clk 0:00:34.3]} 24. Rh6 {[%clk 0:02:18.2]} 24... Re8 {[%clk 0:00:33.3]}
25. h4 {[%clk 0:02:16.8]} 25... Rg7 {[%clk 0:00:33.6]} 26. h5 {[%clk 0:02:16.1]}
26... Nef7 {[%clk 0:00:29.7]} 27. hxg6 {[%clk 0:02:05.7]} 27... Nxh6 {[%clk
0:00:29.8]} 28. Bxh6 {[%clk 0:02:01.4]} 28... Rxg6 {[%clk 0:00:30.1]} 29. Bf4
{[%clk 0:02:00.6]} 29... Nxe4 {[%clk 0:00:25.9]} 30. Nf5 {[%clk 0:01:59.6]}
30... Qf8 {[%clk 0:00:21.9]} 31. Qh5 {[%clk 0:01:55.3]} 31... c4 {[%clk
0:00:20.8]} 32. Bh6 {[%clk 0:01:48.7]} 32... Qc5+ {[%clk 0:00:19.8]} 33. Be3
{[%clk 0:01:49.4]} 33... Qf8 {[%clk 0:00:19.3]} 34. Bd4 {[%clk 0:01:47]} 34...
Ng3 {[%clk 0:00:19]} 35. Nxg3 {[%clk 0:01:45.1]} 35... Rxg3 {[%clk 0:00:19.6]}
36. Rxf6 {[%clk 0:01:43.8]} 36... Qe7 {[%clk 0:00:18.4]} 37. Kh2 {[%clk
0:01:30.4]} 37... Rg7 {[%clk 0:00:18.2]} 38. d6 {[%clk 0:01:25.5]} 38... Qe4
{[%clk 0:00:16.7]} 39. Rf3 {[%clk 0:01:17.9]} 39... Rg6 {[%clk 0:00:15.4]} 40.
Qh3 {[%clk 0:01:03.5]} 40... Qe6 {[%clk 0:00:14.8]} 41. Qh5 {[%clk 0:00:39.2]}
41... Qg4 {[%clk 0:00:14.9]} 42. Qd5+ {[%clk 0:00:38.5]} 42... Qe6 {[%clk
0:00:13.2]} 43. Qh5 {[%clk 0:00:37.2]} 43... Qxd6+ {[%clk 0:00:13.6]} 44. Kg1
{[%clk 0:00:35.2]} 44... Qe6 {[%clk 0:00:14.1]} 45. Rh3 {[%clk 0:00:28.5]} 45...
Qf7 {[%clk 0:00:13.2]} 46. Qh4 {[%clk 0:00:26.3]} 46... Re2 {[%clk 0:00:09.9]}
47. Qd8+ {[%clk 0:00:26]} 47... Re8 {[%clk 0:00:10.5]} 48. Qh4 {[%clk
0:00:26.1]} 48... Re2 {[%clk 0:00:10.8]} 49. Qd8+ {[%clk 0:00:12.6]} 49... Re8
{[%clk 0:00:10.8]} 50. Qh4 {[%clk 0:00:13.3]} 1/2-1/2

[Event "Early-Titled-Tuesday-Blitz-March-05-2024"]
[Site "Chess.com"]
[Date "2024.03.05"]
[Round "4"]
[White "AA95"]
[Black "Shivananda1964"]
[Result "0-1"]
[WhiteElo "2499"]
[BlackElo "2346"]
[TimeControl "180+1"]
[EndTime "8:42:19 PST"]
[Termination "Shivananda1964 won on time"]

1. c4 {[%clk 0:03:00.9]} 1... e5 {[%clk 0:02:56.8]} 2. Nc3 {[%clk 0:03:00.2]}
2... Nf6 {[%clk 0:02:55.9]} 3. g3 {[%clk 0:02:58.9]} 3... d5 {[%clk 0:02:55]} 4.
cxd5 {[%clk 0:02:58.8]} 4... Nxd5 {[%clk 0:02:55.6]} 5. Bg2 {[%clk 0:02:59.4]}
5... Nb6 {[%clk 0:02:56.2]} 6. Nf3 {[%clk 0:02:57.8]} 6... Nc6 {[%clk
0:02:56.1]} 7. O-O {[%clk 0:02:57.4]} 7... Be7 {[%clk 0:02:56.7]} 8. d3 {[%clk
0:02:57.9]} 8... Be6 {[%clk 0:02:56.1]} 9. Be3 {[%clk 0:02:57.5]} 9... O-O
{[%clk 0:02:55.3]} 10. a3 {[%clk 0:02:57.3]} 10... f6 {[%clk 0:02:50.5]} 11. Rc1
{[%clk 0:02:48.9]} 11... Qd7 {[%clk 0:02:50]} 12. Re1 {[%clk 0:02:47.2]} 12...
Rad8 {[%clk 0:02:49.7]} 13. Ne4 {[%clk 0:02:41.2]} 13... Nd5 {[%clk 0:02:38]}
14. Nc5 {[%clk 0:02:33.6]} 14... Bxc5 {[%clk 0:02:37.2]} 15. Bxc5 {[%clk
0:02:32.9]} 15... Rfe8 {[%clk 0:02:37.1]} 16. Nd2 {[%clk 0:02:26.6]} 16... b6
{[%clk 0:02:35.3]} 17. Be3 {[%clk 0:02:26.1]} 17... Nce7 {[%clk 0:02:14.1]} 18.
b4 {[%clk 0:02:21.7]} 18... Nf5 {[%clk 0:01:58.7]} 19. Nf1 {[%clk 0:02:07.4]}
19... Ndxe3 {[%clk 0:01:54.8]} 20. Nxe3 {[%clk 0:02:07.2]} 20... Nxe3 {[%clk
0:01:51.3]} 21. fxe3 {[%clk 0:02:06.6]} 21... Qf7 {[%clk 0:01:43.5]} 22. Bc6
{[%clk 0:02:00.4]} 22... Re7 {[%clk 0:01:43.6]} 23. Qa4 {[%clk 0:01:55.5]} 23...
h5 {[%clk 0:01:29.3]} 24. b5 {[%clk 0:01:42.9]} 24... Qg6 {[%clk 0:01:24.3]} 25.
Rf1 {[%clk 0:01:18.8]} 25... Qg5 {[%clk 0:01:20.2]} 26. Kf2 {[%clk 0:00:47.4]}
26... Bh3 {[%clk 0:01:11.9]} 27. Rfe1 {[%clk 0:00:21.9]} 27... Bg4 {[%clk
0:01:07.4]} 28. h4 {[%clk 0:00:18.1]} 28... Qf5+ {[%clk 0:00:57.4]} 29. Kg1
{[%clk 0:00:18.2]} 29... Qg6 {[%clk 0:00:43.1]} 30. Kh2 {[%clk 0:00:16.4]} 30...
f5 {[%clk 0:00:34.6]} 31. Qxa7 {[%clk 0:00:14.9]} 31... Rf8 {[%clk 0:00:24.5]}
32. Bg2 {[%clk 0:00:13.2]} 32... f4 {[%clk 0:00:23.6]} 33. exf4 {[%clk
0:00:09.3]} 33... exf4 {[%clk 0:00:23.6]} 34. gxf4 {[%clk 0:00:09.5]} 34... Qf6
{[%clk 0:00:17.8]} 35. e3 {[%clk 0:00:05.8]} 35... Qxh4+ {[%clk 0:00:17.3]} 36.
Kg1 {[%clk 0:00:06.5]} 36... Qg3 {[%clk 0:00:12.1]} 37. Qb7 {[%clk 0:00:03.8]}
37... h4 {[%clk 0:00:08.2]} 38. Qd5+ {[%clk 0:00:03.1]} 38... Kh8 {[%clk
0:00:06.5]} 39. Kh1 {[%clk 0:00:02.8]} 39... h3 {[%clk 0:00:05.8]} 40. Be4
{[%clk 0:00:02.5]} 40... Rxe4 {[%clk 0:00:05.1]} 0-1

[Event "Early-Titled-Tuesday-Blitz-March-05-2024"]
[Site "Chess.com"]
[Date "2024.03.05"]
[Round "4"]
[White "KorolDimitriy75"]
[Black "shirovin"]
[Result "1-0"]
[WhiteElo "2442"]
[BlackElo "2071"]
[TimeControl "180+1"]
[EndTime "8:42:20 PST"]
[Termination "KorolDimitriy75 won on time"]

1. d4 {[%clk 0:03:00.9]} 1... Nf6 {[%clk 0:02:58.8]} 2. c4 {[%clk 0:03:01.1]}
2... g6 {[%clk 0:02:59]} 3. Nc3 {[%clk 0:03:01.7]} 3... d5 {[%clk 0:02:58.8]} 4.
cxd5 {[%clk 0:03:02.6]} 4... Nxd5 {[%clk 0:02:58.4]} 5. e4 {[%clk 0:03:03.5]}
5... Nxc3 {[%clk 0:02:58]} 6. bxc3 {[%clk 0:03:04.4]} 6... c5 {[%clk 0:02:58]}
7. Nf3 {[%clk 0:03:04.9]} 7... Bg7 {[%clk 0:02:57.6]} 8. Rb1 {[%clk 0:03:05.5]}
8... O-O {[%clk 0:02:56.9]} 9. Be2 {[%clk 0:03:02.9]} 9... Nc6 {[%clk
0:02:52.5]} 10. d5 {[%clk 0:03:02.8]} 10... Ne5 {[%clk 0:02:52.5]} 11. Nxe5
{[%clk 0:03:02.5]} 11... Bxe5 {[%clk 0:02:52.1]} 12. Qd2 {[%clk 0:03:03.1]}
12... Bc7 {[%clk 0:02:50.2]} 13. O-O {[%clk 0:03:00.6]} 13... Ba5 {[%clk
0:02:11.7]} 14. f4 {[%clk 0:02:41.8]} 14... e6 {[%clk 0:02:07.1]} 15. Bc4 {[%clk
0:02:25.9]} 15... exd5 {[%clk 0:01:59.6]} 16. Bxd5 {[%clk 0:02:26.8]} 16... Rb8
{[%clk 0:01:42.1]} 17. Qd3 {[%clk 0:02:21.1]} 17... Be6 {[%clk 0:01:30.4]} 18.
c4 {[%clk 0:02:19.7]} 18... Bxd5 {[%clk 0:01:24.8]} 19. cxd5 {[%clk 0:01:41.1]}
19... a6 {[%clk 0:01:11.5]} 20. a4 {[%clk 0:01:39.7]} 20... Qd7 {[%clk
0:01:07.7]} 21. Be3 {[%clk 0:01:29.6]} 21... Rfc8 {[%clk 0:01:01.1]} 22. Rfc1
{[%clk 0:01:20.4]} 22... Bb4 {[%clk 0:00:57.2]} 23. e5 {[%clk 0:01:11]} 23...
Qxa4 {[%clk 0:00:49.7]} 24. d6 {[%clk 0:01:02]} 24... Qb5 {[%clk 0:00:40.1]} 25.
Qb3 {[%clk 0:00:45.3]} 25... a5 {[%clk 0:00:33.4]} 26. e6 {[%clk 0:00:44.8]}
26... c4 {[%clk 0:00:20.6]} 27. exf7+ {[%clk 0:00:40.7]} 27... Kxf7 {[%clk
0:00:19.8]} 28. Qd1 {[%clk 0:00:28.3]} 28... c3 {[%clk 0:00:18.3]} 29. Bd4
{[%clk 0:00:10.9]} 29... Rc4 {[%clk 0:00:14.8]} 30. Kh1 {[%clk 0:00:09.7]} 30...
Qd5 {[%clk 0:00:12.4]} 31. Ba7 {[%clk 0:00:08.2]} 31... Qxd1+ {[%clk 0:00:11.6]}
32. Rxd1 {[%clk 0:00:09.1]} 32... c2 {[%clk 0:00:11.9]} 33. Bxb8 {[%clk
0:00:08.7]} 33... cxb1=Q {[%clk 0:00:08.4]} 34. Rxb1 {[%clk 0:00:08.6]} 34...
Rc8 {[%clk 0:00:07.2]} 35. Bc7 {[%clk 0:00:08]} 35... Rg8 {[%clk 0:00:03.4]} 36.
d7 {[%clk 0:00:06.6]} 36... Ke7 {[%clk 0:00:03]} 37. d8=Q+ {[%clk 0:00:06.7]}
37... Rxd8 {[%clk 0:00:02]} 38. Bxd8+ {[%clk 0:00:07.6]} 38... Kxd8 {[%clk
0:00:01.6]} 39. g3 {[%clk 0:00:08.4]} 39... b5 {[%clk 0:00:01.3]} 40. Kg2 {[%clk
0:00:08.4]} 40... Kc7 {[%clk 0:00:01.1]} 41. Kf3 {[%clk 0:00:08.8]} 41... Kc6
{[%clk 0:00:01.7]} 42. Ke4 {[%clk 0:00:09.3]} 42... Kc5 {[%clk 0:00:02.1]} 43.
g4 {[%clk 0:00:08.7]} 43... a4 {[%clk 0:00:01.4]} 44. f5 {[%clk 0:00:08.3]} 1-0

[Event "Early-Titled-Tuesday-Blitz-March-05-2024"]
[Site "Chess.com"]
[Date "2024.03.05"]
[Round "4"]
[White "ZCorrales"]
[Black "martinmena"]
[Result "1-0"]
[WhiteElo "2182"]
[BlackElo "2306"]
[TimeControl "180+1"]
[EndTime "8:42:21 PST"]
[Termination "ZCorrales won by resignation"]

1. e4 {[%clk 0:02:55.4]} 1... c6 {[%clk 0:02:59.7]} 2. d4 {[%clk 0:02:52.3]}
2... d5 {[%clk 0:03:00.6]} 3. e5 {[%clk 0:02:50.9]} 3... Bf5 {[%clk 0:02:59.8]}
4. Nf3 {[%clk 0:02:50.8]} 4... e6 {[%clk 0:02:55]} 5. Be2 {[%clk 0:02:50.5]}
5... c5 {[%clk 0:02:55.7]} 6. c3 {[%clk 0:02:49.7]} 6... Nc6 {[%clk 0:02:55.4]}
7. O-O {[%clk 0:02:49]} 7... Nge7 {[%clk 0:02:48]} 8. dxc5 {[%clk 0:02:44.4]}
8... Ng6 {[%clk 0:02:43.8]} 9. Bb5 {[%clk 0:02:43.6]} 9... Qc7 {[%clk
0:02:40.3]} 10. Bxc6+ {[%clk 0:02:43.3]} 10... bxc6 {[%clk 0:02:39]} 11. Qd4
{[%clk 0:02:38.9]} 11... Be4 {[%clk 0:02:01.4]} 12. Nbd2 {[%clk 0:02:35.8]}
12... Bxf3 {[%clk 0:01:59.1]} 13. Nxf3 {[%clk 0:02:35.6]} 13... Ne7 {[%clk
0:01:55.6]} 14. Bf4 {[%clk 0:02:31.2]} 14... Nf5 {[%clk 0:01:54.3]} 15. Qb4
{[%clk 0:02:03.9]} 15... Rb8 {[%clk 0:01:39.1]} 16. Qa3 {[%clk 0:02:02]} 16...
Rb5 {[%clk 0:01:12.7]} 17. b4 {[%clk 0:01:48.2]} 17... a5 {[%clk 0:00:49.3]} 18.
g4 {[%clk 0:01:35.4]} 18... Ne7 {[%clk 0:00:46.2]} 19. Nd4 {[%clk 0:01:35.2]}
19... Rb8 {[%clk 0:00:33.6]} 20. bxa5 {[%clk 0:01:34.9]} 20... Ng6 {[%clk
0:00:24.1]} 21. Bg3 {[%clk 0:01:33.3]} 21... Ra8 {[%clk 0:00:14.5]} 22. Nb3
{[%clk 0:01:29.2]} 22... Nxe5 {[%clk 0:00:11.2]} 23. Kg2 {[%clk 0:01:20.9]}
23... f6 {[%clk 0:00:09.2]} 24. Rfe1 {[%clk 0:01:19.6]} 24... Be7 {[%clk
0:00:08.9]} 25. Nd4 {[%clk 0:01:18.9]} 25... Kf7 {[%clk 0:00:08]} 26. Bxe5
{[%clk 0:01:16.2]} 26... fxe5 {[%clk 0:00:07.7]} 27. Nf3 {[%clk 0:01:16.5]}
27... e4 {[%clk 0:00:06.2]} 28. Nd4 {[%clk 0:01:13.9]} 28... Rxa5 {[%clk
0:00:05.8]} 29. Qb2 {[%clk 0:01:09.4]} 29... Rb8 {[%clk 0:00:05.7]} 30. Qd2
{[%clk 0:01:07.6]} 30... Qe5 {[%clk 0:00:05]} 31. Nxc6 {[%clk 0:01:06]} 31...
Qf6 {[%clk 0:00:03.3]} 32. Nxa5 {[%clk 0:00:59]} 32... Bxc5 {[%clk 0:00:02.7]}
33. Nc6 {[%clk 0:00:56.2]} 33... Rc8 {[%clk 0:00:01.6]} 34. Nd4 {[%clk
0:00:56.3]} 34... Bxd4 {[%clk 0:00:01.8]} 35. cxd4 {[%clk 0:00:57.2]} 35... Rc4
{[%clk 0:00:01.9]} 36. Red1 {[%clk 0:00:55.8]} 36... Qg6 {[%clk 0:00:02.6]} 37.
h3 {[%clk 0:00:54]} 37... Qf6 {[%clk 0:00:02.8]} 38. Rac1 {[%clk 0:00:52.3]}
38... Qf3+ {[%clk 0:00:02.7]} 39. Kh2 {[%clk 0:00:48.6]} 39... Ra4 {[%clk
0:00:02.7]} 40. Rc7+ {[%clk 0:00:47]} 40... Kg6 {[%clk 0:00:02.5]} 41. Qe3
{[%clk 0:00:42.2]} 41... Qxe3 {[%clk 0:00:02.7]} 42. fxe3 {[%clk 0:00:42.2]}
42... Rxa2+ {[%clk 0:00:03.5]} 43. Kg3 {[%clk 0:00:42.2]} 43... Re2 {[%clk
0:00:04]} 44. Kf4 {[%clk 0:00:41]} 44... Rf2+ {[%clk 0:00:04.1]} 45. Ke5 {[%clk
0:00:41.2]} 45... Rf3 {[%clk 0:00:04.6]} 46. Re1 {[%clk 0:00:40.1]} 46... Rxh3
{[%clk 0:00:04.5]} 47. Kxe6 {[%clk 0:00:40.5]} 47... Rg3 {[%clk 0:00:05.2]} 48.
Kxd5 {[%clk 0:00:40.5]} 48... Rxg4 {[%clk 0:00:06]} 49. Ke5 {[%clk 0:00:40.8]}
49... h5 {[%clk 0:00:06.5]} 50. d5 {[%clk 0:00:40.7]} 50... h4 {[%clk
0:00:06.6]} 51. d6 {[%clk 0:00:40.9]} 51... Rg5+ {[%clk 0:00:07.2]} 52. Ke6
{[%clk 0:00:40.7]} 52... Rf5 {[%clk 0:00:05.5]} 53. Rg1+ {[%clk 0:00:39.1]}
53... Rg5 {[%clk 0:00:04]} 54. Rxg5+ {[%clk 0:00:37.8]} 54... Kxg5 {[%clk
0:00:04.9]} 55. Rxg7+ {[%clk 0:00:37.4]} 55... Kh6 {[%clk 0:00:04.4]} 56. Rg1
{[%clk 0:00:37]} 56... h3 {[%clk 0:00:04]} 57. Rh1 {[%clk 0:00:36.9]} 57... h2
{[%clk 0:00:04.9]} 58. Rxh2+ {[%clk 0:00:36.7]} 1-0

[Event "Early-Titled-Tuesday-Blitz-March-05-2024"]
[Site "Chess.com"]
[Date "2024.03.05"]
[Round "4"]
[White "Egor_Koshulyan"]
[Black "nrvisakh"]
[Result "1/2-1/2"]
[WhiteElo "2720"]
[BlackElo "2916"]
[TimeControl "180+1"]
[EndTime "8:42:22 PST"]
[Termination "Game drawn by repetition"]

1. f4 {[%clk 0:03:00.9]} 1... d5 {[%clk 0:02:56.6]} 2. Nf3 {[%clk 0:03:01.4]}
2... c5 {[%clk 0:02:56.8]} 3. g3 {[%clk 0:03:02]} 3... Nc6 {[%clk 0:02:55]} 4.
Bg2 {[%clk 0:03:02.7]} 4... g6 {[%clk 0:02:52]} 5. O-O {[%clk 0:03:03.2]} 5...
Bg7 {[%clk 0:02:51.5]} 6. d3 {[%clk 0:03:03.8]} 6... d4 {[%clk 0:02:51.3]} 7. e4
{[%clk 0:03:02.1]} 7... dxe3 {[%clk 0:02:51.1]} 8. c3 {[%clk 0:03:02.8]} 8...
Nf6 {[%clk 0:02:39.9]} 9. Bxe3 {[%clk 0:03:02.9]} 9... Qd6 {[%clk 0:02:39.7]}
10. Na3 {[%clk 0:03:01.5]} 10... Ng4 {[%clk 0:02:27.6]} 11. Nb5 {[%clk 0:02:54]}
11... Qd7 {[%clk 0:02:21.6]} 12. Bxc5 {[%clk 0:02:53]} 12... b6 {[%clk
0:02:18.9]} 13. Bf2 {[%clk 0:02:39.6]} 13... Nxf2 {[%clk 0:02:14.5]} 14. Rxf2
{[%clk 0:02:40.5]} 14... Bb7 {[%clk 0:02:14.6]} 15. d4 {[%clk 0:02:28.8]} 15...
O-O {[%clk 0:02:11.5]} 16. Na3 {[%clk 0:02:27.2]} 16... Rfd8 {[%clk 0:02:07.6]}
17. Nc4 {[%clk 0:02:24.5]} 17... Rac8 {[%clk 0:02:05.2]} 18. Nfe5 {[%clk
0:02:13.4]} 18... Qc7 {[%clk 0:02:02.7]} 19. Qg4 {[%clk 0:02:05.3]} 19... e6
{[%clk 0:01:56.7]} 20. Re1 {[%clk 0:01:59.5]} 20... b5 {[%clk 0:01:31.5]} 21.
Ne3 {[%clk 0:01:57.7]} 21... b4 {[%clk 0:01:26.2]} 22. N3c4 {[%clk 0:01:22.3]}
22... Nxe5 {[%clk 0:01:21.4]} 23. Nxe5 {[%clk 0:01:20.5]} 23... bxc3 {[%clk
0:01:17.2]} 24. Bxb7 {[%clk 0:00:57.6]} 24... Qxb7 {[%clk 0:01:07.5]} 25. bxc3
{[%clk 0:00:58.1]} 25... Rxc3 {[%clk 0:01:07.6]} 26. Qg5 {[%clk 0:00:51.8]}
26... Rxd4 {[%clk 0:00:52.6]} 27. Ng4 {[%clk 0:00:50]} 27... Rdd3 {[%clk
0:00:29.7]} 28. f5 {[%clk 0:00:43.2]} 28... gxf5 {[%clk 0:00:17.5]} 29. Nf6+
{[%clk 0:00:37.1]} 29... Kh8 {[%clk 0:00:17.5]} 30. Nh5 {[%clk 0:00:23.5]} 30...
f6 {[%clk 0:00:17.3]} 31. Nxf6 {[%clk 0:00:22.7]} 31... Qf7 {[%clk 0:00:10.5]}
32. Ne4 {[%clk 0:00:17.1]} 32... Bd4 {[%clk 0:00:09.4]} 33. Nxc3 {[%clk
0:00:12.6]} 33... Bxf2+ {[%clk 0:00:06.3]} 34. Kxf2 {[%clk 0:00:13.5]} 34...
Rxc3 {[%clk 0:00:05.8]} 35. Qd8+ {[%clk 0:00:14.2]} 35... Kg7 {[%clk 0:00:06]}
36. Qg5+ {[%clk 0:00:10.6]} 36... Qg6 {[%clk 0:00:05.3]} 37. Qe7+ {[%clk
0:00:09]} 37... Qf7 {[%clk 0:00:05.6]} 38. Qg5+ {[%clk 0:00:07.4]} 38... Qg6
{[%clk 0:00:05.2]} 39. Qe7+ {[%clk 0:00:07.6]} 39... Qf7 {[%clk 0:00:05]} 40.
Qg5+ {[%clk 0:00:07.8]} 1/2-1/2

[Event "Early-Titled-Tuesday-Blitz-March-05-2024"]
[Site "Chess.com"]
[Date "2024.03.05"]
[Round "4"]
[White "Dale"]
[Black "Preobrazhenska_D2011"]
[Result "0-1"]
[WhiteElo "2101"]
[BlackElo "2443"]
[TimeControl "180+1"]
[EndTime "8:42:22 PST"]
[Termination "Preobrazhenska_D2011 won by checkmate"]

1. Nf3 {[%clk 0:03:00.9]} 1... Nf6 {[%clk 0:02:59.3]} 2. h3 {[%clk 0:03:00.6]}
2... d5 {[%clk 0:02:56.5]} 3. g4 {[%clk 0:03:00.6]} 3... h6 {[%clk 0:02:53.6]}
4. d3 {[%clk 0:02:59.3]} 4... c5 {[%clk 0:02:53.3]} 5. a3 {[%clk 0:02:58.2]}
5... Nc6 {[%clk 0:02:53.7]} 6. Bg2 {[%clk 0:02:58.5]} 6... e5 {[%clk 0:02:52.8]}
7. Nc3 {[%clk 0:02:56.6]} 7... d4 {[%clk 0:02:36.4]} 8. Ne4 {[%clk 0:02:55.9]}
8... Nxe4 {[%clk 0:02:33.6]} 9. dxe4 {[%clk 0:02:56.8]} 9... Be7 {[%clk
0:02:33.6]} 10. e3 {[%clk 0:02:55]} 10... Be6 {[%clk 0:02:23]} 11. exd4 {[%clk
0:02:55]} 11... cxd4 {[%clk 0:02:22.3]} 12. O-O {[%clk 0:02:40.2]} 12... O-O
{[%clk 0:02:21]} 13. b4 {[%clk 0:02:39.6]} 13... Bc4 {[%clk 0:02:13.5]} 14. Bb2
{[%clk 0:02:29.2]} 14... Bxf1 {[%clk 0:02:02.3]} 15. Bxf1 {[%clk 0:02:30.1]}
15... a6 {[%clk 0:01:54.6]} 16. Bc4 {[%clk 0:02:25.2]} 16... Qc7 {[%clk
0:01:50.9]} 17. Bd5 {[%clk 0:02:17.5]} 17... Rad8 {[%clk 0:01:45.5]} 18. Rc1
{[%clk 0:02:11.6]} 18... Qd6 {[%clk 0:01:12]} 19. c4 {[%clk 0:02:00.5]} 19...
Nb8 {[%clk 0:00:49.8]} 20. Bxb7 {[%clk 0:01:53.1]} 20... Qc7 {[%clk 0:00:47.1]}
21. Bd5 {[%clk 0:01:51.1]} 21... Nd7 {[%clk 0:00:46.5]} 22. Qa4 {[%clk
0:01:35.8]} 22... Qa7 {[%clk 0:00:23.9]} 23. c5 {[%clk 0:01:28]} 23... Nf6
{[%clk 0:00:19.9]} 24. Nxe5 {[%clk 0:01:24.1]} 24... Nxd5 {[%clk 0:00:19.5]} 25.
exd5 {[%clk 0:01:19.5]} 25... Rxd5 {[%clk 0:00:16.1]} 26. Nc6 {[%clk 0:01:18.8]}
26... Qc7 {[%clk 0:00:15.9]} 27. Nxd4 {[%clk 0:01:16.4]} 27... Qf4 {[%clk
0:00:13.6]} 28. Nf5 {[%clk 0:01:12.4]} 28... Bf6 {[%clk 0:00:10]} 29. Qb3 {[%clk
0:01:10.5]} 29... Bxb2 {[%clk 0:00:07.6]} 30. Qxb2 {[%clk 0:01:08.8]} 30... Re5
{[%clk 0:00:04]} 31. Rd1 {[%clk 0:00:43]} 31... Rfe8 {[%clk 0:00:03.8]} 32. Rd4
{[%clk 0:00:31.6]} 32... Qg5 {[%clk 0:00:03.6]} 33. Qd2 {[%clk 0:00:24.1]} 33...
Rxf5 {[%clk 0:00:03.3]} 34. Qxg5 {[%clk 0:00:21.8]} 34... Rxg5 {[%clk
0:00:04.2]} 35. c6 {[%clk 0:00:21.7]} 35... Rc8 {[%clk 0:00:04]} 36. Rc4 {[%clk
0:00:17.9]} 36... Rg6 {[%clk 0:00:04.6]} 37. a4 {[%clk 0:00:16.5]} 37... Rgxc6
{[%clk 0:00:04.9]} 38. Rxc6 {[%clk 0:00:15.2]} 38... Rxc6 {[%clk 0:00:05.8]} 39.
Kg2 {[%clk 0:00:14.6]} 39... Rc4 {[%clk 0:00:06.2]} 40. b5 {[%clk 0:00:13.2]}
40... axb5 {[%clk 0:00:06.6]} 41. axb5 {[%clk 0:00:13.3]} 41... Rb4 {[%clk
0:00:07.2]} 42. Kg3 {[%clk 0:00:13.5]} 42... Rxb5 {[%clk 0:00:07.8]} 43. Kh4
{[%clk 0:00:13.7]} 43... g5+ {[%clk 0:00:07.8]} 44. Kh5 {[%clk 0:00:13.7]} 44...
Kg7 {[%clk 0:00:08.2]} 45. h4 {[%clk 0:00:14]} 45... Rb3 {[%clk 0:00:06.5]} 46.
hxg5 {[%clk 0:00:12.3]} 46... Rh3# {[%clk 0:00:06.8]} 0-1

[Event "Early-Titled-Tuesday-Blitz-March-05-2024"]
[Site "Chess.com"]
[Date "2024.03.05"]
[Round "4"]
[White "AldokhinIvan"]
[Black "Matalon"]
[Result "1/2-1/2"]
[WhiteElo "2665"]
[BlackElo "2490"]
[TimeControl "180+1"]
[EndTime "8:42:26 PST"]
[Termination "Game drawn by repetition"]

1. e4 {[%clk 0:02:58.7]} 1... c5 {[%clk 0:02:59.5]} 2. Nf3 {[%clk 0:02:58.3]}
2... d6 {[%clk 0:02:59.7]} 3. d4 {[%clk 0:02:58.4]} 3... cxd4 {[%clk 0:02:59.7]}
4. Nxd4 {[%clk 0:02:59.3]} 4... Nf6 {[%clk 0:02:59.8]} 5. Nc3 {[%clk 0:02:59.7]}
5... e5 {[%clk 0:03:00.6]} 6. Nf3 {[%clk 0:02:54.7]} 6... h6 {[%clk 0:02:59.8]}
7. Bc4 {[%clk 0:02:52.2]} 7... Be7 {[%clk 0:02:59.9]} 8. O-O {[%clk 0:02:50.1]}
8... O-O {[%clk 0:02:58.4]} 9. Be3 {[%clk 0:02:47.9]} 9... Be6 {[%clk
0:02:53.5]} 10. Bb3 {[%clk 0:02:42.8]} 10... Nbd7 {[%clk 0:02:53.1]} 11. Qe2
{[%clk 0:02:33.1]} 11... a6 {[%clk 0:02:53]} 12. Rad1 {[%clk 0:02:28.9]} 12...
b5 {[%clk 0:02:46.2]} 13. Bxe6 {[%clk 0:02:10.9]} 13... fxe6 {[%clk 0:02:45.5]}
14. a4 {[%clk 0:02:11.8]} 14... b4 {[%clk 0:02:32.7]} 15. Na2 {[%clk 0:02:11.6]}
15... a5 {[%clk 0:02:29.6]} 16. Qc4 {[%clk 0:01:57.5]} 16... Kf7 {[%clk
0:02:03.7]} 17. c3 {[%clk 0:01:49]} 17... Qc8 {[%clk 0:01:57.5]} 18. Qe2 {[%clk
0:01:40.6]} 18... Qb7 {[%clk 0:01:47.4]} 19. cxb4 {[%clk 0:01:08.1]} 19... axb4
{[%clk 0:01:46.3]} 20. b3 {[%clk 0:01:08.8]} 20... Nxe4 {[%clk 0:01:45.2]} 21.
Rfe1 {[%clk 0:01:00.2]} 21... d5 {[%clk 0:01:44.7]} 22. Bc1 {[%clk 0:00:51.5]}
22... Kg8 {[%clk 0:01:41]} 23. Bb2 {[%clk 0:00:50.3]} 23... Bf6 {[%clk
0:01:27.3]} 24. Qd3 {[%clk 0:00:41.3]} 24... Nec5 {[%clk 0:01:13.2]} 25. Qc2
{[%clk 0:00:37]} 25... Rac8 {[%clk 0:00:50.9]} 26. Qg6 {[%clk 0:00:36.2]} 26...
Nxb3 {[%clk 0:00:32.9]} 27. Rb1 {[%clk 0:00:36.1]} 27... e4 {[%clk 0:00:23.4]}
28. Nh4 {[%clk 0:00:23.6]} 28... Nd2 {[%clk 0:00:18.4]} 29. Qg4 {[%clk 0:00:19]}
29... Qa6 {[%clk 0:00:15.9]} 30. Ng6 {[%clk 0:00:18.3]} 30... Rf7 {[%clk
0:00:14.6]} 31. Nxb4 {[%clk 0:00:18.2]} 31... Qxa4 {[%clk 0:00:13.6]} 32. Qxe6
{[%clk 0:00:17.4]} 32... Nxb1 {[%clk 0:00:12.5]} 33. Nxd5 {[%clk 0:00:11]} 33...
Qa5 {[%clk 0:00:06.5]} 34. Rxb1 {[%clk 0:00:07.2]} 34... Rb8 {[%clk 0:00:03.8]}
35. Nge7+ {[%clk 0:00:05.4]} 35... Bxe7 {[%clk 0:00:01.8]} 36. Nxe7+ {[%clk
0:00:05]} 36... Kf8 {[%clk 0:00:01.9]} 37. Ng6+ {[%clk 0:00:05]} 37... Kg8
{[%clk 0:00:02]} 38. Ne7+ {[%clk 0:00:05.2]} 38... Kf8 {[%clk 0:00:02.7]} 39.
Ng6+ {[%clk 0:00:02.5]} 39... Kg8 {[%clk 0:00:02.8]} 40. Ne7+ {[%clk 0:00:02.2]}
1/2-1/2